[Event "Marshall CC FIDE Premier April 2024"]
[Site "New York"]
[Date "2024.04.15"]
[Round "5.1"]
[White "Putnam, Liam"]
[Black "Muthukumar, Haari"]
[Result "1-0"]
[ECO "D30"]
[WhiteElo "2323"]
[BlackElo "2048"]
[Annotator "TA"]
[PlyCount "65"]
[EventDate "2024.02.02"]
[EventType "swiss"]
[EventCountry "USA"]
[SourceTitle "playchess.com"]
[Source "ChessBase"]
[SourceQuality "1"]
[TimeControl "5400+30"]

{[%evp 9,65,21,15,23,24,0,0,0,0,0,0,8,0,-11,-1,-17,-13,-8,-22,-44,-30,-31,-31,0,-14,-7,24,34,47,47,21,-39,38,0,0,0,78,68,78,48,197,150,187,203,210,169,176,132,129,124,178,42,750,741,1407,1391,1329,1328]} 1. d4 {[%emt 0:00:42]} d5 {[%emt 0:00:05]} 2. c4 {[%emt 0:00:14]} e6 {[%emt 0:00:05]} 3. Nf3 {[%emt 0:00:19]} a6 {[%emt 0:00:02]} 4. g3 {[%emt 0:06:13]} dxc4 {[%emt 0:00:12]} 5. Bg2 {[%emt 0:01:24]} Nc6 {[%emt 0:00:02]} 6. O-O {[%emt 0:00:55]} Rb8 {[%emt 0:00:01]} 7. b3 {[%emt 0:10:00]} cxb3 $1 {[%emt 0:00:57]} 8. Qxb3 {[%emt 0:00:32] The position is equal.} Nf6 {[%emt 0:16:00]} 9. Bb2 {[%emt 0:01:46]} Be7 {[%emt 0:00:23]} 10. Rc1 {[%emt 0:10:50][%cal Oc1c6] Strongly threatening Rxc6!} Bd7 {[%emt 0:04:24]} 11. Nbd2 {[%emt 0:00:20]} O-O {[%emt 0:00:21]} 12. e4 {[%emt 0:00:44]} b6 {[%emt 0:06:39]} 13. Qc3 {[%emt 0:03:16]} Rc8 {[%emt 0:03:49]} 14. a3 {[%emt 0:09:44]} Na5 {[%emt 0:05:33]} 15. Ne5 {[%emt 0:03:45]} c5 {[%emt 0:04:56]} 16. d5 {[%emt 0:00:51]} exd5 {[%emt 0:02:02]} 17. exd5 {[%emt 0:00:25]} Bf5 {[%emt 0:03:51][%cal Of8e8] [#]} 18. g4 $1 {[%emt 0:03:21][%mdl 1024] White has compensation.} Bg6 {[%emt 0:09:36]} 19. h4 {[%emt 0:00:58][%cal Bh2h4,Bh4h5][%mdl 32]} h6 $1 {[%emt 0:02:17]} 20. f4 {[%emt 0:05:39]} ({Better is} 20. Re1 $11) 20... Ne8 {[%emt 0:01:55]} (20... c4 $15 21. g5 Bc5+ (21... Nxd5 $2 {perishes.} 22. Bxd5 Qxd5 23. Nxg6 $18) 22. Kh2 Nh5 (22... Nxd5 $2 {loses.} 23. Bxd5 Qxd5 24. Nxg6 $18)) 21. h5 {[%emt 0:00:47]} Bh7 {[%emt 0:00:55][%cal Oc5c4]} 22. Re1 {[%emt 0:00:13][%cal Og4g5]} f6 {[%emt 0:10:12]} (22... c4 $1 $11 {keeps the balance.}) 23. Nc6 $1 $36 {[%emt 0:02:31][%mdl 2048] White has the initiative. White has more active pieces. The black rooks are passive.} Nxc6 {[%emt 0:00:14]} 24. dxc6 {[%emt 0:00:04] Black must now prevent Nc4.} Bd6 {[%emt 0:01:54]} (24... c4 $1 $14) 25. Rad1 {[%emt 0:01:47]} (25. Nc4 $18) 25... Qc7 {[%emt 0:00:34]} 26. Nc4 {[%emt 0:00:46][%cal Og4g5] aiming for g5!} Kh8 {[%emt 0:03:33]} 27. Nxd6 {[%emt 0:07:11]} Nxd6 {[%emt 0:00:20]} 28. f5 {[%emt 0:00:10]} Nb5 {[%emt 0:04:38] [#]} 29. Qe3 {[%emt 0:00:43]} Rcd8 {[%emt 0:00:38] [#] Dodges Rd7} (29... Rf7 $16 {might work better.}) 30. a4 {[%emt 0:03:13]} (30. Rxd8 $1 $18 Qxd8 31. Qe7) 30... Nd6 $2 {[%emt 0:06:16][%mdl 8192]} (30... Nd4 $14) 31. Qe7 $18 {[%emt 0:00:37] White is clearly winning.} Rf7 {[%emt 0:00:45]} 32. Qxc7 {[%emt 0:00:18]} Rxc7 {[%emt 0:00:04]} 33. Re6 {[%emt 0:00:08] Weighted Error Value: White=0.23 (precise) /Black=0.28 (precise) .  Loses game:     	---       	Black=1      Mistake:       	White=3     	Black=4      Inaccurate:     	White=2     	Black=2      OK:         	White=8     	Black=10     Best:        	White=1     	---        Strong:       	White=1     	Black=2} 1-0

[Event "Marshall CC FIDE Premier April 2024"]
[Site "New York"]
[Date "2024.04.15"]
[Round "5.2"]
[White "Hebbar, Eshaan"]
[Black "Lin, Bryan Enming"]
[Result "1/2-1/2"]
[ECO "A77"]
[WhiteElo "2201"]
[BlackElo "2087"]
[Annotator "TA"]
[PlyCount "64"]
[EventDate "2024.02.02"]
[EventType "swiss"]
[EventCountry "USA"]
[SourceTitle "playchess.com"]
[Source "ChessBase"]
[SourceQuality "1"]
[TimeControl "5400+30"]

{[%evp 22,64,49,48,52,28,36,-35,-29,-32,-19,-30,16,10,29,54,40,54,47,47,47,15,0,18,166,0,0,0,100,81,68,76,75,75,77,0,0,0,0,0,0,0,0,-29,-28]} 1. d4 {[%emt 0:00:03]} Nf6 {[%emt 0:00:04]} 2. c4 {[%emt 0:00:05]} c5 {[%emt 0:00:26]} 3. d5 {[%emt 0:00:06]} g6 {[%emt 0:00:05]} 4. Nc3 {[%emt 0:00:11]} Bg7 {[%emt 0:00:04]} 5. e4 {[%emt 0:01:09]} d6 {[%emt 0:00:10]} 6. Nf3 {[%emt 0:00:08]} O-O {[%emt 0:00:07]} 7. Be2 {[%emt 0:00:09]} e6 {[%emt 0:00:14]} 8. O-O {[%emt 0:00:09]} Re8 {[%emt 0:01:01]} 9. Nd2 {[%emt 0:03:41]} exd5 {[%emt 0:00:14]} 10. cxd5 {[%emt 0:00:02]} Nbd7 {[%emt 0:00:39]} 11. h3 {[%emt 0:00:31]} a6 {[%emt 0:01:32]} 12. a4 {[%emt 0:00:07]} Qc7 {[%emt 0:02:12]} 13. f4 {[%emt 0:06:47]} c4 {[%emt 0:00:38]} 14. Bxc4 {[%emt 0:04:30]} (14. Nxc4 Nxe4 15. Rf3 Nb6 16. Nxe4 Nxc4 $17) (14. e5 $14 dxe5 15. Nxc4 (15. Bxc4 $2 exf4 16. Qb3 Nc5 $19)) 14... Nc5 $15 {[%emt 0:00:14] Black is slightly better.} 15. Re1 {[%emt 0:11:03]} Bd7 $1 {[%emt 0:04:08][%cal Of6e4]} 16. Bf1 {[%emt 0:01:04] [#]} b5 {[%emt 0:05:17]} 17. axb5 $11 {[%emt 0:00:37]} axb5 {[%emt 0:00:11][%cal Ba6b5,Bb5b4][%mdl 32]} 18. Rxa8 {[%emt 0:00:07]} (18. Nxb5 $2 Bxb5 (18... Qb6 19. Nc4 $17) 19. Rxa8 Rxa8 20. Bxb5 Qb6 $19) 18... Rxa8 {[%emt 0:00:06]} 19. e5 $36 {[%emt 0:12:45][%mdl 2048] White has good play.} (19. Nxb5 Qb6 20. Nc3 (20. Nd4 $2 Nd3 $19) 20... Nd3+ (20... Ncxe4+ $2 21. Kh2 $19) (20... Nfxe4 21. Nc4 $16) 21. Kh2 Nxe1 22. Qxe1 Ne8 $11) (19. Bxb5 $2 Bxb5 20. Nxb5 Qb6 $19) 19... Nh5 {[%emt 0:00:58]} 20. Nf3 {[%emt 0:00:12] Hoping for Be3.} (20. Bxb5 $2 Bxb5 21. Nxb5 Qb6 22. Nxd6 Nd3+ (22... Nxf4 $2 23. N2c4 $18) 23. Kh2 Qf2 $19 (23... Nxe1 24. Qxe1 Nxf4 25. N2c4 $11)) 20... b4 {[%emt 0:00:55]} 21. Nb5 {[%emt 0:01:06]} Bxb5 {[%emt 0:01:01]} 22. Bxb5 {[%emt 0:00:03] And now Be3 would win.} Qb6 {[%emt 0:01:10]} (22... Ra1 $1 $11 {and Black stays safe.} 23. Kh2 Nxf4) 23. Bc6 $2 {[%emt 0:00:05]} ({Better is} 23. Bc4 $18) 23... Ra1 {[%emt 0:03:21]} 24. Qd4 {[%emt 0:02:34] Kh2 would now be deadly.} Ng3 {[%emt 0:05:40]} (24... Rxc1 $1 $11 25. Rxc1 Nxf4) 25. Kh2 {[%emt 0:01:48]} Rxc1 {[%emt 0:01:14]} 26. Rxc1 {[%emt 0:12:03]} Ne2 {[%emt 0:00:06][%csl LRc1,LRd4] A dynamic duo of knights.} 27. Qe3 {[%emt 0:00:06]} Nxc1 {[%emt 0:00:11] [#]} 28. Qxc1 {[%emt 0:00:08]} (28. exd6 $1 $16 {Threatening mate with Qe8+.} Bf8 (28... Bxb2 29. Qe8+ Kg7 30. Ng5 Qa7 31. d7) 29. Qe8) 28... dxe5 {[%emt 0:00:42]} 29. Nxe5 {[%emt 0:08:13]} (29. fxe5 Nd3 30. Qg5 Nxe5 (30... Nxb2 $2 {is the wrong capture.} 31. d6 $18) 31. Nxe5 Qc7 $17) 29... Bxe5 {[%emt 0:01:53]} 30. fxe5 {[%emt 0:00:02] Threatens to win with Qc4.} Nd3 {[%emt 0:00:13][%csl LRc1,LRe5]} 31. Qg5 {[%emt 0:02:35] Strongly threatening Qg3.} Qc7 $1 {[%emt 0:00:16]} 32. Qf6 {[%emt 0:02:20]} Qxe5+ {[%emt 0:00:42] Weighted Error Value: White=0.28 (precise) /Black=0.24 (precise) .  Missed win:     	White=1     	---        Mistake:       	White=2     	Black=3      Inaccurate:     	White=2     	---        OK:         	White=9     	Black=6      Best:        	---       	Black=4      Strong:       	---       	Black=2} 1/2-1/2

[Event "Marshall CC FIDE Premier April 2024"]
[Site "New York"]
[Date "2024.04.15"]
[Round "5.3"]
[White "Nkululeko, Nkosi"]
[Black "Li, Michael"]
[Result "1-0"]
[ECO "B22"]
[WhiteElo "1956"]
[BlackElo "2072"]
[Annotator "TA"]
[PlyCount "117"]
[EventDate "2024.02.02"]
[EventType "swiss"]
[EventCountry "USA"]
[SourceTitle "playchess.com"]
[Source "ChessBase"]
[SourceQuality "1"]
[TimeControl "5400+30"]

{[%evp 9,117,57,52,19,39,26,37,40,33,27,38,39,51,35,41,33,35,33,30,36,22,24,47,12,12,20,49,47,81,69,68,69,66,76,112,91,94,75,147,80,162,70,193,193,189,196,155,87,143,92,89,73,131,104,98,90,90,90,124,122,244,237,269,281,320,324,456,467,986,929,1065,419,433,419,435,417,516,502,497,494,535,556,590,546,574,557,29996,29997,29997,805,867,524,795,788,819,750,871,863,925,918,923,922,916,916,896,880,1233,1233,1393,1058]} 1. e4 {[%emt 0:00:25]} c5 {[%emt 0:00:19]} 2. c3 {[%emt 0:00:26]} e5 {[%emt 0:00:12]} 3. Nf3 {[%emt 0:00:21]} Nc6 {[%emt 0:00:04]} 4. Bc4 {[%emt 0:00:19]} Qc7 {[%emt 0:01:30]} 5. Ng5 {[%emt 0:04:06]} Nd8 {[%emt 0:00:15]} 6. Qb3 {[%emt 0:00:54][%cal Rc4f7]} d6 {[%emt 0:00:35]} 7. O-O {[%emt 0:01:30][%cal Od2d4]} h6 {[%emt 0:01:04]} 8. Nf3 {[%emt 0:00:47] White is slightly better.} Nf6 {[%emt 0:10:39][%cal Of8e7]} 9. d4 {[%emt 0:08:17]} Be7 {[%emt 0:01:35]} 10. Bb5+ {[%emt 0:03:57]} Nc6 {[%emt 0:06:48]} 11. d5 {[%emt 0:16:35]} a6 $1 {[%emt 0:00:23]} 12. Qa4 {[%emt 0:01:48]} Rb8 {[%emt 0:02:23]} 13. Be2 {[%emt 0:02:56]} b5 {[%emt 0:01:25]} 14. Qc2 {[%emt 0:01:40]} Na5 {[%emt 0:07:09]} 15. b3 {[%emt 0:00:49][%cal Bb2b3,Bb3b4][%mdl 32]} Nh7 {[%emt 0:02:29][%cal Of7f5]} 16. Re1 {[%emt 0:07:03]} O-O {[%emt 0:05:14]} 17. Nbd2 {[%emt 0:01:52]} Ng5 {[%emt 0:06:47]} 18. Nf1 {[%emt 0:01:38]} Qd8 {[%emt 0:06:12]} 19. Bxg5 {[%emt 0:11:46]} Bxg5 {[%emt 0:00:24]} 20. b4 {[%emt 0:02:37]} Nb7 {[%emt 0:04:04]} 21. a4 {[%emt 0:01:00]} Bd7 {[%emt 0:04:21]} 22. axb5 {[%emt 0:00:48]} axb5 {[%emt 0:01:07]} 23. Ra7 {[%emt 0:02:12]} c4 {[%emt 0:03:47] [#]} (23... Qb6 $142 24. Rea1 Rfc8) 24. Ng3 {[%emt 0:02:33]} (24. Nxg5 $142 $1 {Hoping for Nf3.} Qxg5 25. Rea1) 24... Bf4 {[%emt 0:01:59] [#]} (24... Bf6 $16) 25. Rea1 {[%emt 0:01:18]} ({Better is} 25. Nh5 $1 $18) 25... Bxg3 {[%emt 0:01:11]} (25... g6 $14) 26. hxg3 $18 {[%emt 0:00:03]} f5 {[%emt 0:00:18][%cal Bf7f5,Bf5f4][%mdl 32]} 27. Nd2 {[%emt 0:01:59]} f4 {[%emt 0:03:14]} 28. g4 {[%emt 0:01:09]} (28. gxf4 $142 {Strongly threatening f5.} Rxf4 29. R1a6) 28... Qg5 {[%emt 0:01:51]} (28... g5 $142) 29. Nf3 {[%emt 0:02:17]} ({White should try} 29. Qa2) 29... Qf6 {[%emt 0:02:29][%cal Of8f7]} (29... Qxg4 $2 {is the wrong capture.} 30. Nxe5 dxe5 31. Bxg4 $18) 30. Nh2 {[%emt 0:01:10]} g6 {[%emt 0:02:25]} (30... Bc8 $142) 31. Qa2 {[%emt 0:00:55] Qa6 would now be deadly.} Qd8 {[%emt 0:02:45]} 32. Qa6 {[%emt 0:00:39]} Qc7 {[%emt 0:00:46]} 33. Nf3 {[%emt 0:02:03][%cal Of3e5] And now Nxe5! would win.} Kh7 {[%emt 0:04:43]} 34. g5 $36 {[%emt 0:02:15][%mdl 2048] White is on the roll. White has more active pieces.} Rh8 {[%emt 0:03:04] [#]} (34... h5 $16 {was necessary.} 35. Qa5 Qc8) 35. Qa5 $3 {[%emt 0:03:40][%mdl 512]} Qc8 {[%emt 0:03:07]} (35... Nxa5 36. Rxc7) 36. Qb6 {[%emt 0:01:00]} Re8 {[%emt 0:11:52]} 37. R1a6 {[%emt 0:01:45]} Re7 {[%emt 0:00:00]} (37... Rg8 $142 38. Bd1 Rg7 39. gxh6 Kxh6 40. Nxe5 dxe5) 38. Rxb7 {[%emt 0:12:58]} Qxb7 {[%emt 0:00:00]} (38... Rxb7 $142 39. Qxd6 Qe8 40. gxh6 Bg4 41. Ng5+ Kxh6 42. Bxg4 Kxg5) 39. Qxd6 {[%emt 0:00:00]} Be8 {[%emt 0:00:00]} 40. Nxe5 {[%emt 0:00:00]} (40. Rb6 $142) 40... Qc7 {[%emt 0:00:00]} 41. Qxc7 {[%emt 0:00:00]} (41. Nxg6 $2 {loses.} Qxd6 42. Nf8+ Kg7 43. Rxd6 Kxf8 44. gxh6 Rxe4 $19) 41... Rxc7 {[%emt 0:00:00]} 42. d6 {[%emt 0:00:00] Dodges Re7} Rg7 {[%emt 0:00:00]} 43. gxh6 {[%emt 0:00:00]} Kxh6 {[%emt 0:00:00]} 44. Bg4 {[%emt 0:00:13] Repels Bd7} Kg5 {[%emt 0:01:01]} 45. d7 {[%emt 0:00:51]} Rd8 {[%emt 0:02:40]} 46. Rd6 {[%emt 0:02:09]} Bxd7 {[%emt 0:00:48]} 47. Bxd7 {[%emt 0:00:33]} Re7 {[%emt 0:00:23]} 48. Rxg6+ {[%emt 0:00:38]} (48. Nxg6 $2 {perishes.} Rexd7 49. Rxd7 Rxd7 $19) 48... Kh4 {[%emt 0:00:16]} 49. Nf3+ {[%emt 0:00:27]} (49. g3+ $142 fxg3 50. fxg3+ Kh5 51. Bg4#) 49... Kh5 {[%emt 0:00:03] White is clearly winning.} 50. Rg5+ {[%emt 0:00:04]} Kh6 {[%emt 0:00:03]} 51. Bf5 {[%emt 0:00:14]} Rd1+ {[%emt 0:01:34]} 52. Kh2 {[%emt 0:00:03]} Rd6 {[%emt 0:00:08] Against Rg6+} 53. Rg4 {[%emt 0:00:40]} Rf6 {[%emt 0:01:00]} 54. Rh4+ {[%emt 0:01:14]} Kg7 {[%emt 0:00:03]} 55. Rh7+ {[%emt 0:00:05]} Kf8 {[%emt 0:00:05]} 56. Rxe7 {[%emt 0:00:08]} Kxe7 {[%emt 0:00:03]} 57. Nd4 {[%emt 0:00:07]} Rb6 {[%emt 0:00:31]} 58. e5 {[%emt 0:00:07]} Kd8 {[%emt 0:00:39]} 59. Kh3 {[%emt 0:00:08] Weighted Error Value: White=0.44/Black=0.47.  Mistake:       	White=4     	Black=8      Inaccurate:     	White=1     	Black=5      OK:         	White=18    	Black=10     Best:        	White=2     	Black=1      Strong:       	---       	Black=1} 1-0

[Event "Marshall CC FIDE Premier April 2024"]
[Site "New York"]
[Date "2024.04.15"]
[Round "5.4"]
[White "Ayyappan, Santhosh"]
[Black "Kozower, Ethan"]
[Result "1-0"]
[ECO "E48"]
[WhiteElo "1922"]
[BlackElo "1943"]
[Annotator "TA"]
[PlyCount "117"]
[EventDate "2024.02.02"]
[EventType "swiss"]
[EventCountry "USA"]
[SourceTitle "playchess.com"]
[Source "ChessBase"]
[SourceQuality "1"]
[TimeControl "5400+30"]

{[%evp 16,117,-4,-20,15,-18,20,9,48,23,12,12,10,8,7,0,0,0,0,7,8,-4,11,-10,-8,-10,0,-8,-4,-8,0,0,0,0,0,-5,30,32,37,0,0,-14,-13,-12,3,5,13,3,22,0,-2,0,64,0,62,61,52,55,52,43,60,64,78,21,84,51,154,141,101,135,326,310,937,889,1408,1111,29953,7424,29974,29975,29978,29977,29980,29981,29981,29982,29980,29981,29981,29982,29983,29983,29983,29984,29984,29985,29985,29986,29987,29988,29989,29990,29991,29992]} 1. d4 {[%emt 0:00:02]} Nf6 {[%emt 0:04:37]} 2. c4 {[%emt 0:00:34]} e6 {[%emt 0:00:15]} 3. Nc3 {[%emt 0:00:55]} Bb4 {[%emt 0:00:11]} 4. e3 {[%emt 0:00:30]} O-O {[%emt 0:00:04]} 5. Bd3 {[%emt 0:00:24]} d5 {[%emt 0:00:02]} 6. Nge2 {[%emt 0:01:33]} dxc4 {[%emt 0:00:18]} 7. Bxc4 {[%emt 0:00:43]} c5 {[%emt 0:00:29]} 8. O-O {[%emt 0:00:40]} cxd4 {[%emt 0:01:35]} 9. exd4 {[%emt 0:00:49]} b6 {[%emt 0:07:23]} 10. a3 {[%emt 0:01:58]} Be7 {[%emt 0:00:29]} 11. d5 {[%emt 0:03:27]} Qc7 {[%emt 0:09:35] The position is equal.} (11... exd5 {simplifies} 12. Bxd5 Nxd5 13. Qxd5 Qxd5 14. Nxd5 Bd8) 12. Qb3 {[%emt 0:01:01] Hoping for Nb5.} exd5 $1 {[%emt 0:01:32]} 13. Nxd5 {[%emt 0:00:40]} Nxd5 {[%emt 0:01:37]} 14. Bxd5 {[%emt 0:00:15]} Bb7 {[%emt 0:08:10]} 15. Bf4 {[%emt 0:00:53]} Bxd5 {[%emt 0:00:47]} 16. Qxd5 {[%emt 0:00:17]} Qc6 {[%emt 0:00:05]} 17. Nc3 {[%emt 0:02:59] [#] Threatens to win with Bxb8.} Rd8 {[%emt 0:02:49]} 18. Qf5 {[%emt 0:02:05]} Na6 {[%emt 0:04:49][%cal Bb8a6,Ba6c5,Bc5e6,Be6d4][%mdl 32]} (18... g6 {simplifies} 19. Qb5 Qxb5 20. Nxb5 Nc6) 19. Rac1 {[%emt 0:01:51]} Nc5 {[%emt 0:03:33]} 20. Rcd1 {[%emt 0:04:27] Prevents Nd3.} Ne6 {[%emt 0:09:34][%cal Oe7a3]} 21. Be5 {[%emt 0:03:39]} f6 {[%emt 0:03:05] [#] White must now prevent ...g6.} 22. Bg3 {[%emt 0:00:13]} Nd4 {[%emt 0:06:38]} 23. Qb1 {[%emt 0:01:14]} Kh8 {[%emt 0:03:42][%cal Oe7a3]} 24. Rd3 {[%emt 0:00:41]} Rd7 {[%emt 0:11:27]} 25. Re1 {[%emt 0:02:21]} Nf5 {[%emt 0:04:42]} 26. Rxd7 {[%emt 0:00:49]} Qxd7 {[%emt 0:00:02]} 27. Qe4 {[%emt 0:00:45]} Rd8 {[%emt 0:02:12]} 28. Bc7 {[%emt 0:02:27]} Qxc7 {[%emt 0:02:54]} 29. Qxf5 {[%emt 0:00:12]} Qd7 {[%emt 0:02:57]} 30. Qe4 {[%emt 0:00:27]} Bc5 {[%emt 0:02:46]} 31. b4 {[%emt 0:00:48]} Bd6 {[%emt 0:02:19]} 32. f4 {[%emt 0:02:35]} h6 {[%emt 0:00:50]} 33. Rd1 {[%emt 0:00:37]} Qe7 {[%emt 0:00:29]} (33... Qc7 $11 34. Nd5 Qc6) 34. Kf1 {[%emt 0:01:27] White is more active.} (34. Qxe7 $14 Bxe7 35. Rxd8+ Bxd8 36. Kf2) 34... Qxe4 {[%emt 0:02:05]} ({Black should try} 34... Qc7 $11 35. Nb5 Qb8) 35. Nxe4 $14 {[%emt 0:00:02]} Bc7 {[%emt 0:00:34]} 36. Rxd8+ {[%emt 0:00:36]} Bxd8 {[%emt 0:00:01][%mdl 4096] Endgame. KB-KN} 37. Ke2 {[%emt 0:00:39]} Bc7 {[%emt 0:00:02]} 38. g3 {[%emt 0:00:07]} Kg8 {[%emt 0:00:13]} 39. Kd3 {[%emt 0:00:34]} ({White should play} 39. Nc3 $16) 39... Kf7 {[%emt 0:00:52]} (39... f5 $1 $11 40. Nc3 g5) 40. Nc3 $16 {[%emt 0:01:41]} f5 {[%emt 0:03:05]} (40... g5 $14) 41. Nb5 {[%emt 0:00:13][%csl LRa7,LRc7]} Bb8 {[%emt 0:00:52]} 42. Nd4 {[%emt 0:00:05]} g5 $2 {[%emt 0:00:59] This costs Black the game.} (42... a5 $16) 43. fxg5 $18 {[%emt 0:00:39]} (43. Nxf5 gxf4 44. g4 (44. Nxh6+ Kg6 $11) 44... Kg6 $14) 43... f4 $2 {[%emt 0:00:29]} (43... hxg5 44. Nxf5 Ke6) 44. gxh6 {[%emt 0:00:26]} fxg3 {[%emt 0:00:06]} 45. hxg3 {[%emt 0:00:25] Nc6 would now be deadly.} Kg6 {[%emt 0:01:13]} 46. Nc6 {[%emt 0:03:18]} Bxg3 {[%emt 0:00:03]} 47. Nxa7 {[%emt 0:00:08] White mates.} Kxh6 {[%emt 0:00:35]} 48. Nc8 {[%emt 0:00:10]} Bf2 {[%emt 0:00:16]} 49. Kc4 {[%emt 0:00:12]} Kg6 {[%emt 0:00:21]} 50. Kb5 {[%emt 0:00:05]} Kf6 {[%emt 0:00:09]} 51. Nxb6 {[%emt 0:00:05]} Ke6 {[%emt 0:00:10]} 52. Kc6 {[%emt 0:00:15]} Be1 {[%emt 0:00:20]} 53. b5 {[%emt 0:00:10][%cal Bb4b5,Bb5b6][%mdl 32]} Ke5 {[%emt 0:00:13]} 54. Nc4+ {[%emt 0:00:11]} Kd4 {[%emt 0:00:06]} 55. Nd6 {[%emt 0:00:09]} Bf2 {[%emt 0:01:30]} 56. b6 {[%emt 0:00:05]} Kd3 {[%emt 0:00:02]} 57. a4 {[%emt 0:00:11]} Kc3 {[%emt 0:00:07]} 58. Ne4+ {[%emt 0:00:05]} Kb4 {[%emt 0:00:08]} 59. Nxf2 {[%emt 1:05:11] Weighted Error Value: White=0.08 (flawless) /Black=0.40.  Loses game:     	---       	Black=1      Mistake:       	White=2     	Black=5      Inaccurate:     	White=2     	Black=4      OK:         	White=13    	Black=10     Best:        	White=6     	Black=2      Strong:       	---       	Black=1} 1-0

[Event "Marshall CC FIDE Premier April 2024"]
[Site "New York"]
[Date "2024.04.15"]
[Round "5.5"]
[White "Aravindakshan, Sahana"]
[Black "Lee, Rohan"]
[Result "0-1"]
[ECO "E49"]
[WhiteElo "1904"]
[BlackElo "1913"]
[Annotator "RC"]
[PlyCount "104"]
[EventDate "2024.02.02"]
[EventType "swiss"]
[EventCountry "USA"]
[SourceTitle "playchess.com"]
[Source "ChessBase"]
[SourceQuality "1"]
[TimeControl "5400+30"]

1. d4 {[%emt 0:00:01]} Nf6 {[%emt 0:00:13]} 2. c4 {[%emt 0:00:04]} e6 {[%emt 0:00:08]} 3. Nc3 {[%emt 0:00:03]} Bb4 {[%emt 0:00:04]} 4. e3 {[%emt 0:00:04]} d5 {[%emt 0:01:15]} 5. a3 {[%emt 0:00:05]} Bxc3+ {[%emt 0:00:06]} 6. bxc3 {[%emt 0:00:04]} O-O {[%emt 0:00:15]} 7. cxd5 {[%emt 0:00:43]} exd5 {[%emt 0:00:02]} 8. Bd3 {[%emt 0:00:19]} b6 {[%emt 0:00:11]} 9. Ne2 {[%emt 0:00:37]} c5 {[%emt 0:00:12]} 10. O-O {[%emt 0:00:12]} Ba6 {[%emt 0:00:16]} 11. f3 {[%emt 0:00:34]} Re8 {[%emt 0:00:20]} 12. Ng3 {[%emt 0:01:33]} Bxd3 {[%emt 0:00:14]} 13. Qxd3 {[%emt 0:00:03]} Nc6 {[%emt 0:00:11]} 14. Bb2 {[%emt 0:00:59]} Qe7 {[%emt 0:06:34]} 15. Rae1 {[%emt 0:02:30]} Rad8 {[%emt 0:01:10]} 16. e4 {[%emt 0:02:34]} dxe4 {[%emt 0:00:13]} 17. fxe4 {[%emt 0:00:45]} Ne5 {[%emt 0:02:28]} 18. Qe2 {[%emt 0:06:20]} Ng6 {[%emt 0:03:36]} 19. d5 {[%emt 0:14:23]} b5 {[%emt 0:22:02]} 20. c4 {[%emt 0:13:42]} bxc4 {[%emt 1:01:00]} 21. Qd2 {[%emt 0:17:22]} Ne5 {[%emt 0:00:00]} 22. Nf5 {[%emt 0:07:36]} Qf8 {[%emt 0:00:00]} 23. Qg5 {[%emt 0:03:08]} Nfd7 {[%emt 0:00:00]} 24. Re3 {[%emt 0:01:41]} f6 {[%emt 0:00:00]} 25. Qh4 {[%emt 0:01:07]} Nf7 {[%emt 0:00:00]} 26. Rg3 {[%emt 0:08:00]} Ng5 {[%emt 0:00:00]} 27. d6 {[%emt 0:00:27]} Rxe4 {[%emt 0:00:00]} 28. Ne7+ {[%emt 0:01:42]} Kh8 {[%emt 0:00:00]} 29. Qh5 {[%emt 0:08:35]} Rxe7 {[%emt 0:00:00]} 30. dxe7 {[%emt 0:00:07]} Qxe7 {[%emt 0:00:00]} 31. h4 {[%emt 0:01:27]} Nf7 {[%emt 0:00:00]} 32. Rd1 {[%emt 0:00:38]} Nde5 {[%emt 0:00:00]} 33. Rxd8+ {[%emt 0:01:04]} Qxd8 {[%emt 0:00:00]} 34. Qe2 {[%emt 0:00:56]} Nd3 {[%emt 0:00:00]} 35. Qg4 {[%emt 0:02:38]} g6 {[%emt 0:00:00]} 36. Bc3 {[%emt 0:01:14]} Nfe5 {[%emt 0:00:00]} 37. Qe6 {[%emt 0:00:35]} Nf4 {[%emt 0:00:00]} 38. Qa6 {[%emt 0:01:18]} Ne2+ {[%emt 0:00:00]} 39. Kh2 {[%emt 0:02:01]} Nxg3 {[%emt 0:00:00]} 40. Bxe5 {[%emt 0:00:06]} fxe5 {[%emt 0:00:00]} 41. Kxg3 {[%emt 0:00:07]} c3 {[%emt 0:00:00]} 42. Qc6 {[%emt 0:02:59]} Qd3+ {[%emt 0:00:00]} 43. Kh2 {[%emt 0:00:22]} Qf5 {[%emt 0:00:00]} 44. Qa8+ {[%emt 0:00:42]} Kg7 {[%emt 0:00:00]} 45. Qxa7+ {[%emt 0:00:05]} Kh6 {[%emt 0:00:00]} 46. Qxc5 {[%emt 0:00:25]} c2 {[%emt 0:00:00]} 47. Kg1 {[%emt 0:00:39]} Qe4 {[%emt 0:00:00]} 48. Qf8+ {[%emt 0:00:52]} Kh5 {[%emt 0:00:00]} 49. Qc8 {[%emt 0:00:29]} Qe3+ {[%emt 0:00:00]} 50. Kh2 {[%emt 0:00:08]} Qf4+ {[%emt 0:00:00]} 51. Kh3 {[%emt 0:01:14]} c1=Q {[%emt 0:00:00]} 52. g4+ {[%emt 0:00:11]} Kh6 {[%emt 0:00:00]} 0-1